[Event "Seniors-LEM-50 Sachsen-Anhalt 2024"]
[Site "Magdeburg"]
[Date "2024.07.02"]
[Round "2.10"]
[White "Janeke, Thomas"]
[Black "Anderberg, Peter"]
[Result "0-1"]
[ECO "A29"]
[WhiteElo "1764"]
[BlackElo "1909"]
[Annotator "NA RC"]
[PlyCount "44"]
[EventDate "2024.06.25"]
[EventType "swiss"]
[EventCountry "GER"]
[SourceTitle "playchess.com"]
[Source "ChessBase"]
[SourceQuality "1"]
[TimeControl "40/5400+30:1800+30"]

1. c4 {[%emt 1:31:00]} e5 {[%emt 1:31:00]} 2. Nc3 {[%emt 0:00:30]} Nf6 {[%emt 0:00:30]} 3. Nf3 {[%emt 0:00:30]} Nc6 {[%emt 0:00:30]} 4. g3 {[%emt 0:00:30]} Bb4 {[%emt 0:00:30]} 5. Nd5 {[%emt 0:00:30]} e4 {[%emt 0:00:30]} 6. Ng5 {[%emt 0:00:30] A29: English Opening: Four Knights Variation with 4 g3.} Nxd5 {[%emt 0:00:30]} 7. cxd5 {[%emt 0:00:30]} Qxg5 {[%emt 0:00:30]} 8. dxc6 {[%emt 0:00:30]} e3 {[%emt 0:00:30]} 9. cxd7+ {[%emt 0:00:30]} Bxd7 {[%emt 0:00:30]} 10. Bg2 {[%emt 0:00:30]} exf2+ {[%emt 0:00:30]} 11. Kxf2 {[%emt 0:00:30]} Bc5+ {[%emt 0:00:30]} 12. e3 {[%emt 0:00:30]} O-O-O {[%emt 0:00:30]} 13. Rf1 {[%emt 0:00:30]} Bb5 {[%emt 0:00:30]} 14. Re1 {[%emt 0:00:30]} Rhe8 {[%emt 0:00:30]} 15. Qb3 {[%emt 0:00:30]} Bb6 {[%emt 0:00:30]} 16. a4 {[%emt 0:00:30]} Ba6 {[%emt 0:00:30]} 17. Qc3 {[%emt 0:00:30]} Rd6 {[%emt 0:00:30]} 18. b4 {[%emt 0:00:30]} Rf6+ {[%emt 0:00:30]} 19. Kg1 {[%emt 0:00:30]} Qf5 {[%emt 0:00:30]} 20. Rf1 {[%emt 0:00:30]} Bxf1 {[%emt 0:00:30]} 21. Bb2 {[%emt 0:00:30]} Qf2+ {[%emt 0:00:30]} 22. Kh1 {[%emt 0:00:30]} Bxg2# {[%emt 0:00:30]} 0-1

[Event "Seniors-LEM-50 Sachsen-Anhalt 2024"]
[Site "Magdeburg"]
[Date "2024.07.02"]
[Round "2.11"]
[White "Korte, Markus"]
[Black "Scheunemann, Uwe"]
[Result "1-0"]
[ECO "B07"]
[WhiteElo "1895"]
[BlackElo "1764"]
[Annotator "NA RC"]
[PlyCount "39"]
[EventDate "2024.06.25"]
[EventType "swiss"]
[EventCountry "GER"]
[SourceTitle "playchess.com"]
[Source "ChessBase"]
[SourceQuality "1"]
[TimeControl "40/5400+30:1800+30"]

1. e4 {[%emt 0:00:09]} d6 {[%emt 0:00:23]} 2. d4 {[%emt 0:00:17]} Nf6 {[%emt 0:00:11]} 3. Nc3 {[%emt 0:00:42]} Nbd7 {[%emt 0:01:44]} 4. f4 {[%emt 0:01:09]} e6 {[%emt 0:04:19]} 5. Nf3 {[%emt 0:02:28]} c6 {[%emt 0:01:15]} 6. Bd3 {[%emt 0:07:42] B07: Pirc Defence: Miscellaneous Systems.} b5 {[%emt 0:01:18]} 7. e5 {[%emt 0:05:15]} dxe5 {[%emt 0:00:20]} 8. fxe5 {[%emt 0:00:18]} Ng8 {[%emt 0:03:47]} 9. Ng5 {[%emt 0:02:09]} Nh6 {[%emt 0:04:30]} 10. O-O {[%emt 0:03:38]} Nb6 {[%emt 0:01:36]} 11. Qf3 {[%emt 0:09:05]} Qd7 {[%emt 0:00:25]} 12. Bxh7 {[%emt 0:08:23]} Bb7 {[%emt 0:03:10]} 13. Nxf7 {[%emt 0:09:12]} Rxh7 {[%emt 0:10:03]} 14. Nxh6 {[%emt 0:10:35]} O-O-O {[%emt 0:00:50]} 15. Nf7 {[%emt 0:03:04]} Re8 {[%emt 0:03:09]} 16. Qd3 {[%emt 0:03:30]} g6 $18 {[%emt 0:02:45]} (16... Rh4 $142 17. Ne4 Rxe4) 17. Ng5 {[%emt 0:03:24]} Rg7 {[%emt 0:02:29]} 18. Nce4 {[%emt 0:01:09]} Rd8 {[%emt 0:02:45]} 19. Nf6 {[%emt 0:05:07]} Qe7 {[%emt 0:01:35]} 20. Qh3 {[%emt 0:00:40]} 1-0

[Event "Seniors-LEM-50 Sachsen-Anhalt 2024"]
[Site "Magdeburg"]
[Date "2024.07.02"]
[Round "2.12"]
[White "Mitschka, Manfred"]
[Black "Remstedt, Ute"]
[Result "1-0"]
[ECO "E51"]
[WhiteElo "1863"]
[BlackElo "1710"]
[Annotator "NA RC"]
[PlyCount "63"]
[EventDate "2024.06.25"]
[EventType "swiss"]
[EventCountry "GER"]
[SourceTitle "playchess.com"]
[Source "ChessBase"]
[SourceQuality "1"]
[TimeControl "40/5400+30:1800+30"]

1. d4 {[%emt 0:00:03]} d5 {[%emt 0:00:10]} 2. Nf3 {[%emt 0:00:15]} Nc6 {[%emt 0:00:51]} 3. c4 {[%emt 0:00:23]} Nf6 {[%emt 0:02:48]} 4. Nc3 {[%emt 0:00:53]} e6 {[%emt 0:03:04]} 5. e3 {[%emt 0:02:52]} Bb4 {[%emt 0:03:16]} 6. Bd2 {[%emt 0:03:14]} O-O {[%emt 0:02:57]} 7. Bd3 {[%emt 0:01:31]} Re8 {[%emt 0:07:33]} 8. a3 {[%emt 0:01:13]} Bxc3 {[%emt 0:05:08]} 9. Bxc3 {[%emt 0:01:00]} a6 {[%emt 0:06:48]} 10. O-O {[%emt 0:01:10]} dxc4 {[%emt 0:05:54]} 11. Bxc4 {[%emt 0:00:22]} Ne4 {[%emt 0:00:38]} 12. Be1 {[%emt 0:01:49]} Qf6 {[%emt 0:04:13]} 13. Nd2 {[%emt 0:01:36]} Nd6 {[%emt 0:02:50]} 14. Ba2 {[%emt 0:02:56]} b5 {[%emt 0:01:57]} 15. Nb3 {[%emt 0:03:05]} Nb7 {[%emt 0:05:26]} 16. Rc1 {[%emt 0:02:05]} Bd7 {[%emt 0:03:15]} 17. f4 {[%emt 0:03:57]} Rac8 {[%emt 0:01:53]} 18. Qf3 {[%emt 0:01:21]} Ncd8 {[%emt 0:00:48]} 19. Rf2 {[%emt 0:04:38]} c6 {[%emt 0:01:28]} 20. Bc3 {[%emt 0:03:11]} Qe7 {[%emt 0:02:59]} 21. Qg3 {[%emt 0:04:47]} f6 {[%emt 0:01:17]} 22. Bb1 {[%emt 0:01:17]} c5 {[%emt 0:02:14]} 23. Rfc2 {[%emt 0:10:33]} c4 {[%emt 0:00:37]} 24. Nd2 {[%emt 0:06:04]} Qd6 {[%emt 0:04:04]} 25. Ne4 {[%emt 0:02:53]} Qf8 {[%emt 0:01:54]} 26. Bb4 {[%emt 0:08:27]} Qf7 {[%emt 0:00:14]} 27. Bc3 {[%emt 0:00:57]} Bc6 {[%emt 0:00:27]} 28. d5 {[%emt 0:00:53]} exd5 {[%emt 0:07:52]} 29. Nxf6+ {[%emt 0:31:35]} Kh8 {[%emt 0:22:25]} 30. Nxe8 {[%emt 0:00:00]} Bxe8 {[%emt 0:00:00]} 31. Rd2 {[%emt 0:00:00]} Bc6 {[%emt 0:00:00]} 32. Qh3 {[%emt 0:00:00]} 1-0

[Event "Seniors-LEM-50 Sachsen-Anhalt 2024"]
[Site "Magdeburg"]
[Date "2024.07.02"]
[Round "2.13"]
[White "Wulff, Jens-Peter"]
[Black "Ehrich, Dieter"]
[Result "1/2-1/2"]
[ECO "A02"]
[WhiteElo "1827"]
[BlackElo "1719"]
[Annotator "NA RC"]
[PlyCount "83"]
[EventDate "2024.06.25"]
[EventType "swiss"]
[EventCountry "GER"]
[SourceTitle "playchess.com"]
[Source "ChessBase"]
[SourceQuality "1"]
[TimeControl "40/5400+30:1800+30"]

1. f4 {[%emt 0:00:04]} c5 {[%emt 0:00:14]} 2. e3 {[%emt 0:00:16]} e6 {[%emt 0:01:36]} 3. Be2 {[%emt 0:00:37]} Nc6 {[%emt 0:03:09]} 4. Nf3 {[%emt 0:00:52]} Nf6 {[%emt 0:00:48]} 5. O-O {[%emt 0:00:59]} d5 {[%emt 0:00:37]} 6. d3 {[%emt 0:01:15]} Bd6 {[%emt 0:01:25]} 7. b3 {[%emt 0:01:09]} O-O {[%emt 0:01:05]} 8. h3 {[%emt 0:02:16]} Re8 {[%emt 0:04:20]} 9. Bb2 {[%emt 0:03:12]} e5 {[%emt 0:02:38]} 10. Nh2 {[%emt 0:01:20]} exf4 {[%emt 0:04:12]} 11. exf4 {[%emt 0:03:00]} Qe7 {[%emt 0:11:47]} 12. Bxf6 {[%emt 0:01:46]} Qxf6 {[%emt 0:03:42]} 13. c3 {[%emt 0:02:24]} Bxf4 {[%emt 0:08:10]} 14. Ng4 {[%emt 0:07:04]} Qd6 {[%emt 0:03:05]} 15. Na3 {[%emt 0:10:58]} a6 {[%emt 0:02:20]} 16. Nc2 {[%emt 0:02:20]} f5 {[%emt 0:10:46]} 17. Nf2 {[%emt 0:01:41]} Qg6 {[%emt 0:05:00]} 18. Nh1 {[%emt 0:07:01]} Qd6 {[%emt 0:07:50]} 19. Rf3 {[%emt 0:01:48]} Bg5 {[%emt 0:12:48]} 20. d4 {[%emt 0:11:34]} cxd4 {[%emt 0:01:49]} 21. cxd4 {[%emt 0:01:48]} f4 {[%emt 0:01:42]} 22. a3 {[%emt 0:04:49]} Ne7 {[%emt 0:00:25]} 23. Bd3 {[%emt 0:05:12]} Nf5 {[%emt 0:00:44]} 24. Rf1 {[%emt 0:03:24]} g6 {[%emt 0:03:37]} 25. Bxf5 {[%emt 0:03:54]} Bxf5 {[%emt 0:00:15]} 26. Ne1 {[%emt 0:04:52]} Be4 {[%emt 0:00:35]} 27. Nf2 {[%emt 0:04:02]} Bh4 {[%emt 0:01:20]} 28. Ng4 {[%emt 0:02:21]} Bxe1 {[%emt 0:02:05]} 29. Rxe1 {[%emt 0:00:22]} Rf8 {[%emt 0:00:57]} 30. Ne5 {[%emt 0:00:53]} Rac8 {[%emt 0:00:36]} 31. Rc1 {[%emt 0:01:44]} Qxa3 {[%emt 0:01:11]} 32. Rxc8 {[%emt 0:04:19]} Rxc8 {[%emt 0:00:01]} 33. Nd7 {[%emt 0:00:58]} Kg7 {[%emt 0:01:06]} 34. Nc5 {[%emt 0:00:25]} Re8 {[%emt 0:02:41]} 35. Qd2 {[%emt 0:03:55]} a5 {[%emt 0:00:36]} 36. Qxf4 {[%emt 0:00:44]} b6 {[%emt 0:00:55]} 37. Qc7+ {[%emt 0:00:46]} Kh6 {[%emt 0:00:24]} 38. Nxe4 {[%emt 0:01:00]} Rxe4 {[%emt 0:00:42]} 39. Rxe4 {[%emt 0:00:34]} dxe4 {[%emt 0:00:09]} 40. Qf4+ {[%emt 0:00:25]} Kg7 {[%emt 0:00:10]} 41. Qxe4 {[%emt 0:30:51]} Qxb3 {[%emt 0:30:13]} 42. Qe5+ {[%emt 0:00:29]} 1/2-1/2

[Event "Seniors-LEM-50 Sachsen-Anhalt 2024"]
[Site "Magdeburg"]
[Date "2024.07.02"]
[Round "2.14"]
[White "Gaertig, Johannes"]
[Black "Giesenberg, Angela"]
[Result "0-1"]
[ECO "A48"]
[WhiteElo "1687"]
[BlackElo "1827"]
[Annotator "NA RC"]
[PlyCount "84"]
[EventDate "2024.06.25"]
[EventType "swiss"]
[EventCountry "GER"]
[SourceTitle "playchess.com"]
[Source "ChessBase"]
[SourceQuality "1"]
[TimeControl "40/5400+30:1800+30"]

1. d4 {[%emt 1:31:00]} Nf6 {[%emt 1:31:00]} 2. Nf3 {[%emt 0:00:00]} g6 {[%emt 0:00:00]} 3. Bf4 {[%emt 0:00:00]} d6 {[%emt 0:00:00]} 4. e3 {[%emt 0:00:00]} Bg7 {[%emt 0:00:00]} 5. Bb5+ {[%emt 0:00:00]} c6 {[%emt 0:00:00]} 6. Ba4 {[%emt 0:00:00]} Qa5+ {[%emt 0:00:00]} 7. Nc3 {[%emt 0:00:00]} Ne4 {[%emt 0:00:00]} 8. O-O {[%emt 0:00:00]} Nxc3 {[%emt 0:00:00]} 9. Bb3 {[%emt 0:00:00]} Nd5 {[%emt 0:00:00]} 10. c3 {[%emt 0:00:00]} Nxf4 {[%emt 0:00:00]} 11. exf4 {[%emt 0:00:00]} O-O {[%emt 0:00:00]} 12. Ng5 {[%emt 0:00:00]} d5 {[%emt 0:00:00]} 13. h4 {[%emt 0:00:00]} h6 {[%emt 0:00:00]} 14. Nf3 {[%emt 0:00:00]} Bg4 {[%emt 0:00:00]} 15. Qd3 {[%emt 0:00:00]} Nd7 {[%emt 0:00:00]} 16. Nh2 {[%emt 0:00:00]} Bf5 {[%emt 0:00:00]} 17. Qe3 {[%emt 0:00:00]} Qc7 {[%emt 0:00:00]} 18. Rfe1 {[%emt 0:00:00]} Rae8 {[%emt 0:00:00]} 19. Nf3 {[%emt 0:00:00]} a5 {[%emt 0:00:00]} 20. a4 {[%emt 0:00:00]} Nf6 {[%emt 0:00:00]} 21. Ne5 {[%emt 0:00:00]} Nd7 {[%emt 0:00:00]} 22. Rac1 {[%emt 0:00:00]} Nxe5 {[%emt 0:00:00]} 23. fxe5 {[%emt 0:00:00]} e6 {[%emt 0:00:00]} 24. c4 {[%emt 0:00:00]} f6 {[%emt 0:00:00]} 25. f4 {[%emt 0:00:00]} fxe5 {[%emt 0:00:00]} 26. dxe5 {[%emt 0:00:00]} Qe7 {[%emt 0:00:00]} 27. Qg3 {[%emt 0:00:00]} Kh7 {[%emt 0:00:00]} 28. cxd5 {[%emt 0:00:00]} cxd5 {[%emt 0:00:00]} 29. Re3 {[%emt 0:00:00]} Rc8 {[%emt 0:00:00]} 30. Rec3 {[%emt 0:00:00]} Rxc3 {[%emt 0:00:00]} 31. Rxc3 {[%emt 0:00:00]} d4 {[%emt 0:00:00]} 32. Rc1 {[%emt 0:00:00]} d3 {[%emt 0:00:00]} 33. Bd1 {[%emt 0:00:00]} Qb4 {[%emt 0:00:00]} 34. b3 {[%emt 0:00:00]} Qd2 {[%emt 0:00:00]} 35. Ra1 {[%emt 0:00:00]} Qb2 {[%emt 0:00:00]} 36. h5 {[%emt 0:00:00]} Qxa1 {[%emt 0:00:00]} 37. hxg6+ {[%emt 0:00:00]} Bxg6 {[%emt 0:00:00]} 38. Qg4 {[%emt 0:00:00]} Qd4+ {[%emt 0:00:00]} 39. Kh1 {[%emt 0:00:00]} Qxf4 {[%emt 0:00:00]} 40. Qxe6 {[%emt 0:00:00]} Qh4+ {[%emt 0:00:01]} 41. Qh3 {[%emt 0:00:00]} Qxh3+ {[%emt 0:31:26]} 42. gxh3 {[%emt 0:00:00]} Rf1+ {[%emt 0:00:18]} 0-1

[Event "Seniors-LEM-50 Sachsen-Anhalt 2024"]
[Site "Magdeburg"]
[Date "2024.07.02"]
[Round "2.15"]
[White "Meffert, Claudia"]
[Black "Ahrens, Gunnar"]
[Result "1/2-1/2"]
[ECO "D06"]
[WhiteElo "1811"]
[BlackElo "1750"]
[Annotator "NA RC"]
[PlyCount "92"]
[EventDate "2024.06.25"]
[EventType "swiss"]
[EventCountry "GER"]
[SourceTitle "playchess.com"]
[Source "ChessBase"]
[SourceQuality "1"]
[TimeControl "40/5400+30:1800+30"]

1. d4 {[%emt 0:00:03]} Nc6 {[%emt 0:00:08]} 2. c4 {[%emt 0:00:42]} d5 {[%emt 0:00:19]} 3. Nf3 {[%emt 0:01:09]} Bf5 {[%emt 0:02:14]} 4. Nc3 {[%emt 0:01:14]} e6 {[%emt 0:00:31]} 5. Bf4 {[%emt 0:01:24]} Bb4 {[%emt 0:03:57]} 6. e3 {[%emt 1:28:58]} Nge7 {[%emt 1:26:21]} 7. Rc1 {[%emt 0:00:30]} dxc4 {[%emt 0:00:00]} 8. Bxc4 {[%emt 0:00:00]} Nd5 {[%emt 0:00:00]} 9. Bg3 {[%emt 0:00:00]} Bg4 {[%emt 0:00:00]} 10. O-O {[%emt 0:00:00]} O-O {[%emt 0:00:00]} 11. a3 {[%emt 0:00:00]} Nxc3 {[%emt 0:00:00]} 12. bxc3 {[%emt 0:00:00]} Bxa3 {[%emt 0:00:00]} 13. Rb1 {[%emt 0:00:00]} Rb8 {[%emt 0:00:00]} 14. Be2 {[%emt 0:00:00]} Bd6 {[%emt 0:00:00]} 15. Qa4 {[%emt 0:00:00]} Bxg3 {[%emt 0:00:00]} 16. hxg3 {[%emt 0:00:00]} Qd6 {[%emt 0:00:00]} 17. Rfc1 {[%emt 0:00:00]} b6 {[%emt 0:00:00]} 18. Bb5 {[%emt 0:00:00]} Bxf3 {[%emt 0:00:00]} 19. gxf3 {[%emt 0:00:00]} Na5 {[%emt 0:00:00]} 20. Rb2 {[%emt 0:00:00]} c6 {[%emt 0:00:00]} 21. Bd3 {[%emt 0:00:00]} Rfc8 {[%emt 0:00:00]} 22. Ba6 {[%emt 0:00:00]} Rd8 {[%emt 0:00:00]} 23. Be2 {[%emt 0:00:00]} Qc7 {[%emt 0:00:00]} 24. Ra1 {[%emt 0:00:00]} Rd6 {[%emt 0:00:00]} 25. Qb4 {[%emt 0:00:00]} Rbd8 {[%emt 0:00:00]} 26. f4 {[%emt 0:00:00]} Rc8 {[%emt 0:00:00]} 27. Ba6 {[%emt 0:00:00]} Ra8 {[%emt 0:00:00]} 28. Be2 {[%emt 0:00:00]} Qd8 {[%emt 0:00:00]} 29. Bf3 {[%emt 0:00:00]} Rc8 {[%emt 0:00:00]} 30. Qa4 {[%emt 0:01:12]} c5 {[%emt 0:00:00]} 31. Kg2 {[%emt 0:00:56]} cxd4 {[%emt 0:00:00]} 32. cxd4 {[%emt 0:00:13]} g6 {[%emt 0:00:00]} 33. Qb5 {[%emt 0:01:28]} Rd7 {[%emt 0:00:00]} 34. Be4 {[%emt 0:01:07]} Rdc7 {[%emt 0:00:00]} 35. Rbb1 {[%emt 0:00:31]} Nc4 {[%emt 0:00:00]} 36. Bd3 {[%emt 0:00:53]} Qe7 {[%emt 0:00:00]} 37. Qa6 {[%emt 0:00:59]} Qd6 {[%emt 0:00:12]} 38. Bxc4 {[%emt 0:00:29]} Rxc4 {[%emt 0:02:04]} 39. Qxa7 {[%emt 0:00:10]} Qd5+ {[%emt 0:04:15]} 40. Kg1 {[%emt 0:01:37]} b5 {[%emt 0:10:29]} 41. Qa5 {[%emt 0:07:05]} h5 {[%emt 0:00:00]} 42. Qe1 {[%emt 0:01:22]} Rc2 {[%emt 0:00:00]} 43. Qd1 {[%emt 0:01:34]} Qc4 {[%emt 0:00:37]} 44. Qf1 {[%emt 0:02:24]} b4 {[%emt 0:05:39]} 45. Qxc4 {[%emt 0:01:20]} R8xc4 {[%emt 0:00:26]} 46. Kf1 {[%emt 0:04:03]} Rd2 {[%emt 0:01:18]} 1/2-1/2

[Event "Seniors-LEM-50 Sachsen-Anhalt 2024"]
[Site "Magdeburg"]
[Date "2024.07.02"]
[Round "2.16"]
[White "Schoknecht, Sabine"]
[Black "Gaul, Karl-Heinz"]
[Result "0-1"]
[ECO "A00"]
[WhiteElo "1836"]
[BlackElo "1684"]
[Annotator "NA RC"]
[PlyCount "96"]
[EventDate "2024.06.25"]
[EventType "swiss"]
[EventCountry "GER"]
[SourceTitle "playchess.com"]
[Source "ChessBase"]
[SourceQuality "1"]
[TimeControl "40/5400+30:1800+30"]

1. e3 {[%emt 0:00:11]} e5 {[%emt 0:00:42]} 2. Be2 {[%emt 0:00:08]} d5 {[%emt 0:00:25]} 3. d3 {[%emt 0:00:29]} Nf6 {[%emt 0:00:40]} 4. b3 {[%emt 0:00:53]} Bb4+ {[%emt 0:01:14]} 5. Nd2 {[%emt 0:00:20]} Bc3 {[%emt 0:00:23]} 6. Rb1 {[%emt 0:00:11]} c5 {[%emt 0:01:06]} 7. Ngf3 {[%emt 0:00:47]} e4 {[%emt 0:01:39]} 8. dxe4 {[%emt 0:03:40]} dxe4 {[%emt 0:02:57]} 9. Ng5 {[%emt 0:02:34]} h6 {[%emt 0:00:42]} 10. Nh3 {[%emt 0:00:47]} Bxh3 {[%emt 0:00:10]} 11. gxh3 {[%emt 0:00:08]} Nc6 {[%emt 0:06:16]} 12. a3 {[%emt 0:01:13]} Ne5 {[%emt 0:03:12]} 13. Rg1 {[%emt 0:03:19]} Qd7 {[%emt 0:01:42]} 14. Rg3 {[%emt 0:02:11]} O-O-O {[%emt 0:02:21]} 15. b4 {[%emt 0:03:04]} c4 {[%emt 0:00:23]} 16. b5 {[%emt 0:03:18]} Qf5 {[%emt 0:00:39]} 17. Kf1 {[%emt 0:03:32]} Rd5 {[%emt 0:03:04]} 18. Bg4 {[%emt 0:01:46]} Nfxg4 {[%emt 0:02:21]} 19. hxg4 {[%emt 0:00:01]} Qf6 {[%emt 0:01:11]} 20. Qe2 {[%emt 0:01:00]} Bxd2 {[%emt 0:03:58]} 21. Bxd2 {[%emt 0:00:27]} Rhd8 {[%emt 0:00:02]} 22. Bc3 {[%emt 0:00:55]} Qd6 {[%emt 0:01:44]} 23. Bxe5 {[%emt 0:11:14]} Qxe5 {[%emt 0:02:12]} 24. Qxc4+ {[%emt 0:02:54]} Kb8 {[%emt 0:00:36]} 25. Rb4 {[%emt 0:03:12]} f5 {[%emt 0:02:29]} 26. gxf5 {[%emt 0:01:52]} Qa1+ {[%emt 0:02:31]} 27. Kg2 {[%emt 0:00:49]} Rxf5 {[%emt 0:00:12]} 28. Qxe4 {[%emt 0:04:43]} Qf6 {[%emt 0:00:12]} 29. Rf3 {[%emt 0:07:47]} Rg5+ {[%emt 0:05:17]} 30. Rg3 {[%emt 0:02:32]} Rf5 {[%emt 0:01:13]} 31. f4 {[%emt 0:02:41]} g6 {[%emt 0:01:35]} 32. Rd4 {[%emt 0:04:26]} Rc8 {[%emt 0:07:18]} 33. c4 {[%emt 0:02:29]} g5 {[%emt 0:00:54]} 34. h3 {[%emt 0:04:51]} Qf8 {[%emt 0:04:01]} 35. a4 {[%emt 0:05:56]} Rcc5 {[%emt 0:00:28]} 36. Qd3 {[%emt 0:04:04]} Rc8 {[%emt 0:00:52]} 37. a5 {[%emt 0:02:40]} Rfc5 {[%emt 0:00:13]} 38. Rf3 {[%emt 0:02:18]} Qg8 {[%emt 0:01:30]} 39. Rf2 {[%emt 0:01:43]} gxf4+ {[%emt 0:02:24]} 40. Kf1 {[%emt 0:03:02]} Rxc4 {[%emt 0:03:22]} 41. Rdxf4 {[%emt 0:33:46]} Rc1+ {[%emt 0:32:59]} 42. Ke2 {[%emt 0:00:19]} R1c2+ {[%emt 0:00:05]} 43. Kf3 {[%emt 0:00:31]} Rxf2+ {[%emt 0:03:27]} 44. Kxf2 {[%emt 0:00:12]} Qa2+ {[%emt 0:00:13]} 45. Kf3 {[%emt 0:00:41]} Qxa5 {[%emt 0:00:03]} 46. Qd6+ {[%emt 0:07:06]} Qc7 {[%emt 0:02:04]} 47. Qxh6 {[%emt 0:00:00]} Qd7 {[%emt 0:00:00]} 48. Qh5 {[%emt 0:00:00]} Qd1+ {[%emt 0:00:00]} 0-1

[Event "Seniors-LEM-50 Sachsen-Anhalt 2024"]
[Site "Magdeburg"]
[Date "2024.07.05"]
[Round "5.1"]
[White "Hoffmann, Uwe"]
[Black "Fabig, Holger"]
[Result "1/2-1/2"]
[ECO "A40"]
[WhiteElo "2013"]
[BlackElo "1969"]
[Annotator "RC"]
[PlyCount "35"]
[EventDate "2024.06.25"]
[EventType "swiss"]
[EventCountry "GER"]
[SourceTitle "playchess.com"]
[Source "ChessBase"]
[SourceQuality "1"]
[TimeControl "40/5400+30:1800+30"]

1. d4 {[%emt 0:00:02]} e6 {[%emt 0:00:08]} 2. c4 {[%emt 0:00:25]} b6 {[%emt 0:00:53]} 3. e4 {[%emt 0:00:49]} Bb7 {[%emt 0:00:04]} 4. Bd3 {[%emt 0:02:34]} Bb4+ {[%emt 0:00:12]} 5. Nc3 {[%emt 0:00:24]} f5 {[%emt 0:00:18]} 6. Qc2 {[%emt 0:04:08]} Nf6 {[%emt 0:02:01]} 7. f3 {[%emt 0:02:16]} Nc6 {[%emt 0:03:49]} 8. Nge2 {[%emt 0:02:03]} e5 {[%emt 0:02:46]} 9. dxe5 {[%emt 0:04:45]} Nxe5 {[%emt 0:06:04]} 10. exf5 {[%emt 0:01:04]} Nxd3+ {[%emt 0:12:27]} 11. Qxd3 {[%emt 0:00:42]} Qe7 {[%emt 0:01:16]} 12. Bd2 {[%emt 0:03:19]} O-O-O {[%emt 0:00:47]} 13. O-O-O {[%emt 0:00:19]} d5 {[%emt 0:02:44]} 14. cxd5 {[%emt 0:04:50]} Bxc3 {[%emt 0:02:19]} 15. Nxc3 {[%emt 0:00:17]} Nxd5 {[%emt 0:00:28]} 16. Nxd5 {[%emt 0:08:26]} Rxd5 {[%emt 0:00:19]} 17. Qc2 {[%emt 0:03:15]} Rf8 {[%emt 0:04:15]} 18. f6 {[%emt 0:06:37]} 1/2-1/2

[Event "Seniors-LEM-50 Sachsen-Anhalt 2024"]
[Site "Magdeburg"]
[Date "2024.07.05"]
[Round "5.2"]
[White "Hansch, Torsten"]
[Black "Kottke, Steffen"]
[Result "1-0"]
[ECO "D37"]
[WhiteElo "2047"]
[BlackElo "1933"]
[Annotator "NA RC"]
[PlyCount "57"]
[EventDate "2024.06.25"]
[EventType "swiss"]
[EventCountry "GER"]
[SourceTitle "playchess.com"]
[Source "ChessBase"]
[SourceQuality "1"]
[TimeControl "40/5400+30:1800+30"]

1. d4 {[%emt 0:00:02]} d5 {[%emt 0:00:13]} 2. Nf3 {[%emt 0:00:10]} e6 {[%emt 0:00:45]} 3. c4 {[%emt 0:00:10]} Nf6 {[%emt 0:01:09]} 4. Nc3 {[%emt 0:00:13]} Be7 {[%emt 0:04:16]} 5. Bf4 {[%emt 0:00:11]} c6 {[%emt 0:00:51]} 6. e3 {[%emt 0:00:12]} O-O {[%emt 0:00:20]} 7. c5 {[%emt 0:00:13]} Ne4 {[%emt 0:04:27]} 8. Nxe4 {[%emt 0:03:48]} dxe4 {[%emt 0:00:08]} 9. Nd2 {[%emt 0:00:17]} f5 {[%emt 0:00:30]} 10. Bc4 {[%emt 0:00:30]} b6 {[%emt 0:04:20]} 11. b4 {[%emt 0:00:59]} a5 {[%emt 0:01:39]} 12. a3 {[%emt 0:00:03]} b5 {[%emt 0:00:18]} 13. Be2 {[%emt 0:05:15]} Nd7 {[%emt 0:00:30]} 14. f3 {[%emt 0:07:08]} exf3 {[%emt 0:10:44]} 15. Bxf3 {[%emt 0:01:21]} Bb7 {[%emt 0:03:21]} 16. Qb3 {[%emt 0:06:30]} Kf7 {[%emt 0:03:57]} 17. O-O {[%emt 0:00:47]} Nf6 {[%emt 0:01:41]} 18. Be5 {[%emt 0:03:16]} Qd7 {[%emt 0:10:19]} 19. e4 {[%emt 0:02:07]} g6 {[%emt 0:01:44]} 20. g4 {[%emt 0:08:31]} axb4 {[%emt 0:04:49]} 21. gxf5 {[%emt 0:01:45]} bxa3 {[%emt 0:00:50]} 22. fxg6+ {[%emt 0:07:53]} hxg6 {[%emt 0:01:27]} 23. Bg4 {[%emt 0:08:33]} Bc8 {[%emt 0:11:08]} 24. Rxa3 {[%emt 0:02:09]} Rxa3 {[%emt 0:00:32]} 25. Qxa3 {[%emt 0:00:02]} Kg8 {[%emt 0:00:42]} 26. Bd1 {[%emt 0:03:24]} Ne8 {[%emt 0:00:42]} 27. Qg3 {[%emt 0:02:57]} Rxf1+ {[%emt 0:02:30]} 28. Nxf1 {[%emt 0:00:02]} Kh7 {[%emt 0:04:52]} 29. Qh3+ {[%emt 0:36:32]} 1-0